Cogmind - Beta 11.1 @@@ ROGUE MODE // 2022.10.15 @ 19:40:12 Player: Beepinex Result: Destroyed by G-34 Mercenary with Small Laser Performance ------------- Evolutions (1) 500 Regions Visited (4) 800 Robots Destroyed (72) 360 Value Destroyed (1689) 1689 Prototype IDs (4) 80 Alien Tech Used (0) 0 Bonus (294) 294 TOTAL SCORE: 3723 Bonus ------- High Alert Combat Kills 294 Cogmind --------- Core Integrity 0/400 Matter 300/300 Energy 84/100 System Corruption 7% Temperature Cool (6) Movement Walking (120) Location -9/Mines Parts ------- > --- POWER (1) -------- (None) > --- PROPULSION (2) --- Improved Aluminum Leg Improved Aluminum Leg > --- UTILITY (4) ------ Improved Heat Sink Medium Storage Unit > --- WEAPON (2) ------- Beam Rifle Particle Gun > --- INVENTORY (10) --- Improved Aluminum Leg Improved Aluminum Leg Power Amplifier Small Storage Unit Small Laser Beam Rifle Mining Laser Peak State ------------ > --- POWER ------------ Ion Engine > --- PROPULSION ------- Improved Aluminum Leg Improved Aluminum Leg > --- UTILITY ---------- Improved Heat Sink Medium Storage Unit Transport Network Coupler Targeting Computer > --- WEAPON ----------- Improved Medium Laser Improved Medium Laser > --- INVENTORY -------- Ion Engine Ion Engine Aluminum Leg Aluminum Leg Heat Sink Small Storage Unit Small Laser Improved Medium Laser [Rating: 18] Favorites ----------- Power Ion Engine Engine Ion Engine Propulsion Aluminum Leg Leg Aluminum Leg Utility Medium Storage Unit Device Heat Sink Storage Medium Storage Unit Processor Targeting Computer Protection Light Armor Plating Weapon Improved Medium Laser Energy Gun Improved Medium Laser Ballistic Gun Assault Rifle Launcher Grenade Launcher Build | -11 -10 -10 -9 -9 ------- Run | Scr Mat Min Mat Min Slots Evolved 2 | . . . 2 . Power . | . . . . . Propulsion . | . . . . . Utility 2 | . . . 2 . Weapon . | . . . . . Parts Attached 57 | 7 13 . 37 . Power 8 | 1 2 . 5 . Engine 8 | 1 2 . 5 . Core . | . . . . . Reactor . | . . . . . Propulsion 14 | 2 3 . 9 . Treads . | . . . . . Leg 14 | 2 3 . 9 . Wheel . | . . . . . Hover . | . . . . . Flight . | . . . . . Utility 16 | 2 2 . 12 . Device 9 | 1 . . 8 . Storage 2 | 1 1 . . . Processor 2 | . 1 . 1 . Hackware . | . . . . . Protection 3 | . . . 3 . Artifact . | . . . . . Weapon 19 | 2 6 . 11 . Energy Gun 15 | 1 4 . 10 . Energy Cannon . | . . . . . Ballistic Gun 2 | 1 1 . . . Ballistic Cannon . | . . . . . Launcher 2 | . 1 . 1 . Special Weapon . | . . . . . Impact Weapon . | . . . . . Slashing Weapon . | . . . . . Piercing Weapon . | . . . . . Special Melee Weapon . | . . . . . Unidentified Prototypes . | . . . . . Parts Lost 18 | . 4 . 12 2 Power 2 | . . . 1 1 Propulsion . | . . . . . Utility 7 | . 1 . 5 1 Weapon 9 | . 3 . 6 . Highest Loss Streak 6 | . 2 . 6 2 To Critical Strikes . | . . . . . Average Slot Usage (%) 97 | . 99 100 94 77 Engine 12 | . 14 14 10 5 Leg 24 | . 28 28 21 22 Device 9 | . 6 . 14 11 Storage 12 | . 14 14 11 11 Processor 9 | . 7 14 10 . Protection 1 | . . . 3 5 Energy Gun 18 | . 18 14 20 22 Ballistic Gun 3 | . 8 . . . Launcher 2 | . . 14 1 . Naked Turns . | . . . . . Heaviest Build 31 | 13 20 20 31 . Greatest Support 26 | 20 20 20 26 . Greatest Overweight (x) 3 | 1 3 . 1 . Average Overweight (x) . | . . . . . Largest Inventory Capacity 10 | 8 10 10 10 10 Average Capacity 9 | 7 8 10 10 10 Most Carried 9 | 4 8 8 9 7 Average Carried 5 | 1 3 8 6 7 Final Capacity 10 | 8 10 10 10 10 Final Carried 8 | 2 8 8 7 7 Class Distribution -------------------- 59% | Mutant 40% | Scavenger-Mutant Dominant Class ---------------- Mutant | -10/Materials Mutant | -10/Mines Scavenger-Mutant | -9/Materials Mutant | -9/Mines Resources | -11 -10 -10 -9 -9 ----------- Run | Scr Mat Min Mat Min Matter Collected 997 | 270 195 74 458 . Remotely . | . . . . . Salvage Created 2230 | 138 558 34 1459 41 Parts 136 | 7 43 4 81 1 Haulers Intercepted 6 | . 2 . 4 . Recyclers Shooed 2 | . . 1 1 . Parts Field Recycled . | . . . . . Retrieved Matter . | . . . . . Parts Self-Destructed . | . . . . . Prevented . | . . . . . Kills | -11 -10 -10 -9 -9 ------- Run | Scr Mat Min Mat Min Combat Hostiles Destroyed 59 | . 15 10 33 1 Guns 38 | . 15 . 22 1 AOE 20 | . . 10 10 . Classes Destroyed 14 | 2 5 2 4 1 Builder 1 | . . . 1 . Tunneler 3 | 2 . 1 . . Hauler 6 | . 2 . 4 . Recycler 2 | 1 . . 1 . Operator 1 | . 1 . . . Watcher 3 | . 2 . 1 . Swarmer 21 | . 9 5 7 . Grunt 22 | . 6 . 16 . Brawler 2 | . . . 2 . Duelist 1 | . . . . 1 Protector 2 | . . . 2 . Sentry 6 | . . . 6 . Demolisher 2 | . . 2 . . Assembled 3 | . . 3 . . Best Kill Streak 11 | 2 4 11 6 1 Combat Bots Only 10 | . 4 10 5 1 Max Kills in Single Turn 3 | 1 1 2 3 1 Gunslinging . | . . . . . Exploded 3 | . . 2 3 . Melee . | . . . . . Uniques/NPCs Destroyed . | . . . . . Combat | -11 -10 -10 -9 -9 -------- Run | Scr Mat Min Mat Min Damage Taken 3063 | . 775 45 2037 206 Core 544 | . 141 . 382 21 Absorbed by Shields . | . . . . . Regen/Repaired (Parts) 319 | . . . 319 . Core Remaining (%) 71 | 100 . 43 . . Volleys Fired 272 | 14 90 11 145 12 Largest 2 | 1 2 1 2 1 Hottest 112 | 40 80 30 112 65 Shots Fired 339 | 14 110 11 193 11 Gun 319 | 14 110 . 184 11 Cannon . | . . . . . Launcher 20 | . . 11 9 . Special . | . . . . . Kinetic 25 | . 25 . . . Thermal 232 | . 55 . 166 11 Explosive 20 | . . 11 9 . Electromagnetic 62 | 14 30 . 18 . Robot Hit Streak 18 | 5 13 4 18 10 Robot Miss Streak 3 | 2 3 1 3 2 Penetration Max . | . . . . . Secondary Targets 2 | . . . 2 . Max Gunslinging Chain 1 | . . . 1 . Shots Hit Robots 238 | 10 82 4 132 10 Core Hits 124 | 3 29 25 65 2 Critical Kills . | . . . . . Critical Parts Destroyed . | . . . . . Critical Strikes 9 | . . . 9 . Burn 9 | . . . 9 . Melee Attacks . | . . . . . Impact . | . . . . . Slashing . | . . . . . Piercing . | . . . . . Sneak Attacks . | . . . . . Combat Hostiles . | . . . . . Follow-up Attacks . | . . . . . Damage Inflicted 4329 | 149 1023 397 2605 155 Guns 3327 | 149 1023 . 2000 155 Cannons . | . . . . . Explosions 993 | . . 397 596 . Melee . | . . . . . Ramming 9 | . . . 9 . Kinetic 268 | . 268 . . . Thermal 2447 | . 429 . 1863 155 Explosive 949 | . . 397 552 . Electromagnetic 656 | 149 326 . 181 . Impact . | . . . . . Slashing . | . . . . . Piercing . | . . . . . Highest Corruption 7 | . . . 7 7 Average Corruption 6 | . . . 6 7 Corruption Purged . | . . . . . Corruption Blocked . | . . . . . Effects 22 | . . . 20 2 Message Errors 6 | . . . 6 . Matter Fused 3 | . . . 2 1 Heat Flow Errors 3 | . . . 3 . Energy Discharges 4 | . . . 4 . Data Loss (minor) 2 | . . . 2 . Data Loss (major) 1 | . . . 1 . Misfires 1 | . . . 1 . Alerts 1 | . . . 1 . Weapon Failures 1 | . . . . 1 Overload Shots . | . . . . . Overflow Damage 17 | . . . 17 . Projectiles . | . . . . . Explosions 17 | . . . 17 . Melee . | . . . . . Knockbacks . | . . . . . Impact . | . . . . . Kinetic . | . . . . . Secondary . | . . . . . Self-Inflicted Damage 85 | . . 29 56 . Shots 6 | . . 2 4 . Rammed . | . . . . . Targets Rammed 3 | . . . 3 . Kicked 3 | . . . 3 . Crushed . | . . . . . Highest Temperature 255 | . 144 . 255 20 Average Temperature 55 | . 43 . 63 13 Received Heat Transfer 1263 | . 282 . 939 42 Siege Activations . | . . . . . Robots Corrupted . | . . . . . Combat Hostiles . | . . . . . Parts Fried 5 | 1 4 . . . Impact Corruptions . | . . . . . Robots Melted 2 | . . . 2 . Combat Hostiles 1 | . . . 1 . Parts Melted 19 | . 3 . 16 . Heat Transferred 5968 | . 975 . 4623 370 Parts Sabotaged . | . . . . . Parts Stolen . | . . . . . Parts Stripped . | . . . . . Power Chain Reactions 1 | . . . 1 . Missiles Intercepted . | . . . . . Alert | -11 -10 -10 -9 -9 ------- Run | Scr Mat Min Mat Min Peak Influence 800 | 15 187 319 800 289 Initial 279 | . 9 21 124 279 Average 372 | 5 121 188 603 280 Maximum Alert Level 3 | . . 1 3 1 Low Security (%) 43 | 100 100 43 2 . Level 1 8 | . . 56 2 100 Level 2 34 | . . . 68 . Level 3 13 | . . . 26 . Level 4 . | . . . . . Level 5 . | . . . . . High Security . | . . . . . Max Security . | . . . . . Squads Dispatched 7 | . 2 . 5 . Investigation 5 | . 2 . 3 . Extermination . | . . . . . Reinforcement . | . . . . . Assault 2 | . . . 2 . Garrison . | . . . . . Intercept . | . . . . . Searches Triggered . | . . . . . Construction Impeded . | . . . . . Haulers Reinforced . | . . . . . Active Scanning Responses . | . . . . . Cargo Convoy Interrupts . | . . . . . Stealth | -11 -10 -10 -9 -9 --------- Run | Scr Mat Min Mat Min Distress Signals . | . . . . . Communications Jammed . | . . . . . Distress Signals . | . . . . . Times Spotted 76 | . 21 8 45 2 Peak Tracking Total 8 | . 5 7 8 2 Tactical Retreats 5 | . 1 . 4 . Traps | -11 -10 -10 -9 -9 ------- Run | Scr Mat Min Mat Min Traps Triggered 1 | . 1 . . . Indirectly . | . . . . . Trap Hack Attempts . | . . . . . Triggered . | . . . . . Disarmed . | . . . . . Reprogrammed . | . . . . . Reused . | . . . . . Traps Extracted . | . . . . . Installed . | . . . . . Triggered . | . . . . . Machines | -11 -10 -10 -9 -9 ---------- Run | Scr Mat Min Mat Min Machines Disabled 2 | . . 1 1 . Max in Single Turn 1 | . . 1 1 . Machines Sabotaged . | . . . . . Garrisons Compromised . | . . . . . Overloaded Fab Kills . | . . . . . Hacking | -11 -10 -10 -9 -9 --------- Run | Scr Mat Min Mat Min Machines Accessed 13 | . 7 . 6 . Terminals 8 | . 5 . 3 . Fabricators . | . . . . . Repair Stations 2 | . . . 2 . Recycling Units 3 | . 2 . 1 . Scanalyzers . | . . . . . Garrison Access . | . . . . . Total Hacks 63 | . 34 . 29 . Successful 44 | . 21 . 23 . Failed 19 | . 13 . 6 . Catastrophic . | . . . . . Database Lockouts . | . . . . . Manual 47 | . 34 . 13 . Terminals 35 | . 27 . 8 . Fabricators . | . . . . . Repair Stations 16 | . . . 16 . Recycling Units 12 | . 7 . 5 . Scanalyzers . | . . . . . Garrison Access . | . . . . . Terminal Hacks 11 | . 8 . 3 . Robot Analysis 1 | . 1 . . . Prototype ID Bank 2 | . 2 . . . Branch Access Points 2 | . 1 . 1 . Terminal Index 2 | . 1 . 1 . Recycling Unit Index 3 | . 2 . 1 . Zone Layout 1 | . 1 . . . Fabricator Hacks . | . . . . . Repair Station Hacks 14 | . . . 14 . Scan Component 8 | . . . 8 . Repair 6 | . . . 6 . Recycling Unit Hacks . | . . . . . Scanalyzer . | . . . . . Garrison Access Hacks . | . . . . . Unauthorized Hacks 19 | . 13 . 6 . Terminals 9 | . 7 . 2 . Track 3 | . 3 . . . Botnet 5 | . 3 . 2 . Operators 1 | . 1 . . . Fabricators . | . . . . . Repair Stations . | . . . . . Recycling Units 10 | . 6 . 4 . Monitor 2 | . 1 . 1 . Reject 3 | . 2 . 1 . Recyclers 3 | . 2 . 1 . Mask 2 | . 1 . 1 . Scanalyzers . | . . . . . Garrison Access . | . . . . . Data Cores Recovered 1 | . 1 . . . Used . | . . . . . Hacking Detections 11 | . 6 . 5 . Full Trace Events 6 | . 3 . 3 . Feedback Events 1 | . . . 1 . Corruption 1 | . . . 1 . Feedback Blocked . | . . . . . Robot Schematics Acquired . | . . . . . Robots Built . | . . . . . Authchips . | . . . . . Time . | . . . . . Total Robot Build Rating . | . . . . . Part Schematics Acquired . | . . . . . Parts Built . | . . . . . Authchips . | . . . . . Time . | . . . . . Total Part Build Rating . | . . . . . Parts Repaired 6 | . . . 6 . Time 187 | . . . 187 . Parts Recycled . | . . . . . Recycled Matter . | . . . . . Retrieved Matter . | . . . . . Retrieved Components . | . . . . . Parts Scanalyzed . | . . . . . Part Schematics Acquired . | . . . . . Parts Damaged . | . . . . . Bothacking | -11 -10 -10 -9 -9 ------------ Run | Scr Mat Min Mat Min Used RIF Installer . | . . . . . Robots Hacked . | . . . . . Non-combat . | . . . . . Combat . | . . . . . Robot Hacks Applied . | . . . . . Relay Couplers Released . | . . . . . Fabnet Peak Effective % . | . . . . . Robots Rewired . | . . . . . Allies Hacked . | . . . . . Hacks Repelled . | . . . . . Allies | -11 -10 -10 -9 -9 -------- Run | Scr Mat Min Mat Min Total Allies . | . . . . . Largest Group . | . . . . . Highest-Rated Group . | . . . . . Highest-Rated Ally . | . . . . . Total Orders . | . . . . . Ally Attacks . | . . . . . Total Damage . | . . . . . Kills . | . . . . . Allies Corrupted . | . . . . . Allies Melted . | . . . . . Intel | -11 -10 -10 -9 -9 ------- Run | Scr Mat Min Mat Min Robot Analysis Total 1 | . 1 . . . Derelict Logs Recovered 1 | . . 1 . . Drone Launches . | . . . . . Drone Recoveries . | . . . . . Exploration | -11 -10 -10 -9 -9 ------------- Run | Scr Mat Min Mat Min Turns Passed 3586 | 112 1231 388 1833 22 Spaces Moved 1829 | 62 685 287 795 . Core 101 | 15 86 . . . Treads . | . . . . . Legs 1728 | 47 599 287 795 . Wheels . | . . . . . Hover . | . . . . . Flight . | . . . . . Fastest Speed 50 | 50 120 120 120 . Average Speed 136 | 110 130 120 150 . Slowest Speed 200 | 120 200 120 190 . Overloaded Moves . | . . . . . Propulsion Burnouts . | . . . . . Robots Hopped . | . . . . . Cave-ins Triggered . | . . . . . Exploration Rate (%) 45 | 5 83 84 52 3 Regions Visited 4 Branch Regions 2 Pre-discovered Areas . | . . . . . Known Exits Taken 2 | . 1 . 1 . Unknown Exits Taken 2 | 1 . 1 . . Scrap Searched 1 | . . 1 . . Spaces Dug 11 | . . 11 . . Terrain Destroyed 132 | . . 60 72 . Melee . | . . . . . Projectile . | . . . . . AOE 132 | . . 60 72 . Terrain Rammed . | . . . . . Walls Destroyed . | . . . . . Machines Disabled . | . . . . . Actions | -11 -10 -10 -9 -9 --------- Run | Scr Mat Min Mat Min Total 2571 | 91 914 319 1235 12 Wait 331 | . 103 22 206 . Move 1825 | 61 684 286 794 . Hop . | . . . . . Pick Up 61 | 9 17 . 35 . Fast Attach . | . . . . . Attach 30 | 7 4 . 19 . Detach . | . . . . . Swap 27 | . 9 . 18 . Drop 22 | . 7 . 15 . Fire 272 | 14 90 11 145 12 Melee . | . . . . . Ram . | . . . . . Kick 3 | . . . 3 . Crush . | . . . . . Escape Stasis . | . . . . . Rewire . | . . . . . Trap . | . . . . . Miscellaneous . | . . . . . Route ------- -11/Scrapyard -10/Materials (discovered 3 exits: *Mat / *Min x2) -10/Mines -9/Materials (discovered 2 exits: [*Mat] / *Min) -9/Mines History --------- Turn | Location | Event 12 | -11/Scrapyard | Discovered new exit (range 14) 113 | -11/Scrapyard | Entered Materials 313 | -10/Materials | Build established: Mutant 392 | -10/Materials | Discovered new exit (range 16) 835 | -10/Materials | Discovered new exit (range 11) 952 | -10/Materials | Core integrity fell below 50% 1036 | -10/Materials | Identified exit to Mines 1344 | -10/Materials | Entered Mines 1510 | -10/Mines | Assembled infested the area 1515 | -10/Mines | Assisted by a Guerilla fighting off Assembled 1559 | -10/Mines | Destroyed 10 combat bots 1592 | -10/Mines | Learned Materials security intel 1721 | -10/Mines | Discovered new exit (range 10) 1732 | -10/Mines | Entered Materials 1732 | -9/Materials | Evolved 2 slots: Utility x2 1939 | -9/Materials | Lost 3 parts (1u2w) 2129 | -9/Materials | Repaired Imp. Aluminum Leg? 2174 | -9/Materials | Repaired Ion Engine 2201 | -9/Materials | Repaired Aluminum Leg 2224 | -9/Materials | Build established: Scavenger-Mutant 2495 | -9/Materials | Discovered new exit (range 16) 2532 | -9/Materials | First assault squad dispatched 2798 | -9/Materials | Repaired ECM Suite 2853 | -9/Materials | Repaired Imp. Medium Laser 2861 | -9/Materials | Build established: Mutant 2984 | -9/Materials | Core integrity fell below 50% 3007 | -9/Materials | Core integrity fell below 20% 3054 | -9/Materials | Lost 6 parts (1p3u2w) 3140 | -9/Materials | Identified exit to Mines 3323 | -9/Materials | Build established: Scavenger-Mutant 3481 | -9/Materials | Repaired Lgt. Armor Plating 3565 | -9/Materials | Entered Mines 3587 | -9/Mines | Destroyed by G-34 Mercenary with Small Laser Last Messages --------------- Time: 32 Feedback: System corruption (+1%). 03483_ ALERT: Suspicious activity at Repair Station M001. Dispatching Investigation squad. 03505_ Acquired 2 matter. 03507_ System corrupted: FCS attempts to trigger Particle Gun. 03507_ System corrupted: Particle Gun misfires. 03524_ Acquired 8 matter. 03528_ C0BK%BCKL|9OJ FHXDUQ 03561_ Acquired Mining Laser. 03562_ K-01 Serf cleans the Machine. LOCATION=MINES GOAL=ESCAPE Something is scanning the area. 03566_ Heat Sink destroyed. 03568_ System corrupted: Matter fused (-5). 03570_ Rnf. Ion Engine destroyed. 03573_ Lgt. Armor Plating severed. 03573_ L-31 Rogue destroyed. 03583_ System corrupted: Particle Gun failed to cycle. Map ----- +----------------------------------------------------+ | ?????????????????????????????????????? | | ?????????????????????????????????????? | | ?????????????????????????????????????? | | ?????????????????????????????????????? | | ?????????????????????????????????????? | | ?????????????????????????????????????? | | ?????????????????????????????????????? | | ?????????????????????????????????????? | | ?????????????????????????????????????? | | ?????????????????????????????????????? | | ?????????????????????????????????????? | | ?????????????????????????????????????? | | ?????????????????????????????????????? | | ?????????????????????????????????????? | | ?????????????????????????????????????? | | ?????????????????????????????????????? | | ?????????????????????????????????????? | | ?????????????????????????????????????? | | ?????????????????????????????????????? | | ??????????????????????###????????????? | | ??????????????????????# ????????????? | | ??????????????????????# ????????????? | | ????????????????????### ####????????? | | ????????????????????# #????????? | | ????????????????????# #????????? | | ????????????????????# @! #????????? | | ????????????????????# %g#????????? | | ????????????????????#r """#????????? | | ??????????????????? k """#????????? | | ??????????????????### """#????????? | | ????????????????????# #????????? | | ????????????????????#########????????? | | ?????????????????????????????????????? | | ?????????????????????????????????????? | | | | | | | | | | | | | | | | | | | | | | | | | | | | | | | | | +----------------------------------------------------+ Best States ------------- Heat Dissipation 52 Energy Generation 12 Energy Capacity 265 Matter Stores 300 Matter Capacity 300 Sight Range 16 Terrain Scan Density 10 ECM Strength 1 Armor Coverage 150 Evasion (%) 55 Targeting Accuracy 5 Item Schematics ----------------- None Robot Schematics ------------------ None Fabricated ------------ Nothing Alien Tech Used ----------------- None Achievements -------------- None Challenges ------------ None Game ------ Seed ArmoredStasisShockpuncher Manual? 0 Play Time 00:38:48 Cumulative 23.4 hours Start 2022.10.15 @ 18:47:11 End 2022.10.15 @ 19:40:12 Sessions 1 Manual Loads 0 Difficulty Rogue Special Mode None Game No. 45 Rogue 45 Adventurer 0 Explorer 0 Win Type - Total 0 Types 0/0/0/0/0/0/0/0/0 Lore% 18 Gallery% 20 Achievement% 23 Wizard Run 0 Options --------- ASCII 0 Keyboard 0 Movement Mouse Keybinds 0 Fullscreen 2 Font 18/TerminusBold Map View 76x50 Tactical HUD 1 Map Filters NONE Filters NONE Steam 1 RUN: 8fdb9582-e7d7-4f4e-9426-c15654fa796e